fUST/lending_fUST_20250806
["ID","MTS","AMOUNT","RATE_DAILY","PERIOD"]
[377458425,1754416267854,-460.0,0.00028767,2]
[377458426,1754416267864,-1242.29,0.00028767,2]
[377458427,1754416267874,-460.0,0.00028767,2]
[377458428,1754416267883,-460.0,0.00028767,2]
[377458429,1754416267892,-460.0,0.00028767,2]
[377458430,1754416267902,-151.0,0.00028767,7]
[377458431,1754416267912,-460.0,0.00028767,2]
[377458432,1754416267921,-738.23,0.00028767,2]
[377458433,1754416267930,-460.0,0.00028767,2]
[377458434,1754416267939,-460.0,0.00028767,2]
[377458435,1754416267948,-460.0,0.00028767,2]
[377458436,1754416267957,-151.0,0.00028767,7]
[377458437,1754416267967,-460.0,0.00028767,2]
[377458438,1754416267977,-1758.45,0.00028767,2]
[377458439,1754416267986,-1709.46,0.00028767,2]
[377458440,1754416267996,-6104.81,0.00028767,2]
[377458441,1754416268007,-460.0,0.00028767,2]
[377458442,1754416268016,-181.88151,0.00028767,7]
[377458443,1754416268027,-460.0,0.00028767,2]
[377458444,1754416268037,-460.0,0.00028767,2]
[377458445,1754416268047,-902.91,0.00028767,2]
[377458446,1754416268056,-710.17,0.00028767,2]
[377458447,1754416268065,-181.88151,0.00028767,7]
[377458448,1754416268074,-1606.27,0.00028767,2]
[377458449,1754416268084,-819.41,0.00028767,2]
[377458450,1754416268094,-460.0,0.00028767,2]
[377458451,1754416268103,-1844.87,0.00028767,2]
[377458452,1754416268112,-460.0,0.00028767,2]
[377458453,1754416268121,-460.0,0.00028767,2]
[377458454,1754416268130,-460.0,0.00028767,2]
[377458455,1754416268139,-460.0,0.00028767,2]
[377458456,1754416268149,-460.0,0.00028767,2]
[377458457,1754416268159,-460.0,0.00028767,2]
[377458458,1754416268169,-460.0,0.00028767,2]
[377458459,1754416268179,-881.55,0.00028767,2]
[377458460,1754416268188,-460.0,0.00028767,2]
[377458461,1754416268197,-460.0,0.00028767,2]
[377458462,1754416268207,-460.0,0.00028767,2]
[377458463,1754416268216,-460.0,0.00028767,2]
[377458464,1754416268225,-460.0,0.00028767,2]
[377458465,1754416268234,-558.16,0.00028767,2]
[377458466,1754416268244,-518.54,0.00028767,2]
[377458467,1754416268253,-460.0,0.00028767,2]
[377458468,1754416268262,-175.0,0.00028767,7]
[377458469,1754416268271,-460.0,0.00028767,2]
[377458470,1754416268281,-1561.24,0.00028767,2]
[377458471,1754416268290,-460.0,0.00028767,2]
[377458472,1754416268299,-175.0,0.00028767,7]
[377458473,1754416268308,-460.0,0.00028767,2]
[377458474,1754416268317,-460.0,0.00028767,2]
[377458475,1754416268326,-3008.19,0.00028767,2]
[377458476,1754416268336,-460.0,0.00028767,2]
[377458477,1754416268347,-460.0,0.00028767,2]
[377458478,1754416268359,-844.75,0.00028767,2]
[377458479,1754416268368,-553.95421163,0.00028767,2]
[377458480,1754416268378,-460.0,0.00028767,2]
[377458481,1754416268387,-314.82570417,0.00028767,2]
[377458482,1754416268397,-460.0,0.00028767,2]
[377458483,1754416268406,-1526.12,0.00028767,2]
[377458484,1754416268415,-1209.84,0.00028767,2]
[377458485,1754416268425,-460.0,0.00028767,2]
[377458486,1754416268435,-734.51,0.00028767,2]
[377458487,1754416268445,-460.0,0.00028767,2]
[377458488,1754416268454,-460.0,0.00028767,2]
[377458489,1754416268463,-582.79929482,0.00028767,2]
[377458490,1754416268473,-468.69085504,0.00028767,2]
[377458491,1754416268482,-169.49896597,0.00028767,2]
[377458492,1754416268491,-674.37,0.00028767,2]
[377458493,1754416268501,-506.31927887,0.00028767,2]
[377458494,1754416268511,-460.0,0.00028767,2]
[377458495,1754416268521,-460.0,0.00028767,2]
[377458496,1754416268530,-460.0,0.00028767,2]
[377458497,1754416268540,-844.14,0.00028767,2]
[377458498,1754416268550,-1000.34,0.00028767,2]
[377458499,1754416268561,-460.0,0.00028767,2]
[377458500,1754416268570,-2193.9,0.00028767,2]
[377458501,1754416268579,-460.0,0.00028767,2]
[377458502,1754416268589,-460.0,0.00028767,2]
[377458503,1754416268598,-249.450475,0.00028767,7]
[377458504,1754416268608,-460.0,0.00028767,2]
[377458505,1754416268617,-460.0,0.00028767,2]
[377458506,1754416268627,-519.7,0.00028767,2]
[377458507,1754416268638,-465.33961852,0.00028767,2]
[377458508,1754416268651,-460.0,0.00028767,2]
[377458509,1754416268661,-249.450475,0.00028767,7]
[377458510,1754416268672,-460.0,0.00028767,2]
[377458511,1754416268682,-460.0,0.00028767,2]
[377458512,1754416268692,-460.0,0.00028767,2]
[377458513,1754416268703,-460.0,0.00028767,2]
[377458514,1754416268713,-460.0,0.00028767,2]
[377458515,1754416268723,-748.97,0.00028767,2]
[377458516,1754416268733,-460.0,0.00028767,2]
[377458517,1754416268742,-460.0,0.00028767,2]
[377458518,1754416268751,-460.0,0.00028767,2]
[377458519,1754416268760,-460.0,0.00028767,2]
[377458520,1754416268769,-460.0,0.00028767,2]
[377458521,1754416268779,-3138.65,0.00028767,2]
[377458522,1754416268788,-460.0,0.00028767,2]
[377458523,1754416268798,-489.33,0.00028767,2]
[377458524,1754416268808,-460.0,0.00028767,2]
[377458525,1754416268817,-460.0,0.00028767,2]
[377458526,1754416268827,-460.0,0.00028767,2]
[377458527,1754416268837,-460.0,0.00028767,2]
[377458528,1754416268847,-460.0,0.00028767,2]
[377458529,1754416268857,-3180.74,0.00028767,2]
[377458530,1754416268866,-2230.2,0.00028767,2]
[377458531,1754416268875,-1930.76,0.00028767,2]
[377458532,1754416268885,-460.0,0.00028767,2]
[377458533,1754416268895,-460.0,0.00028767,2]
[377458534,1754416268904,-460.0,0.00028767,2]
[377458535,1754416268914,-460.0,0.00028767,2]
[377458536,1754416268923,-560.35,0.00028767,2]
[377458537,1754416268933,-460.0,0.00028767,2]
[377458538,1754416268942,-460.0,0.00028767,2]
[377458539,1754416268952,-727.87,0.00028767,2]
[377458540,1754416268961,-460.0,0.00028767,2]
[377458541,1754416268971,-460.0,0.00028767,2]
[377458542,1754416268980,-460.0,0.00028767,2]
[377458543,1754416268989,-1127.9,0.00028767,2]
[377458544,1754416268998,-460.0,0.00028767,2]
[377458545,1754416269009,-460.0,0.00028767,2]
[377458546,1754416269019,-460.0,0.00028767,2]
[377458547,1754416269028,-460.0,0.00028767,2]
[377458548,1754416269038,-460.0,0.00028767,2]
[377458549,1754416269048,-1550.17,0.00028767,2]
[377458550,1754416269057,-460.0,0.00028767,2]
[377458551,1754416269067,-460.0,0.00028767,2]
[377458552,1754416269076,-463.13361287,0.00028767,2]
[377458553,1754416269085,-460.0,0.00028767,2]
[377458554,1754416269095,-569.87,0.00028767,2]
[377458555,1754416269105,-2106.63,0.00028767,2]
[377458556,1754416269114,-3854.83,0.00028767,2]
[377458557,1754416269124,-473.52991264,0.00028767,2]
[377458558,1754416269133,-460.0,0.00028767,2]
[377458559,1754416269143,-154.514533,0.00028767,7]
[377458560,1754416269153,-714.24,0.00028767,2]
[377458561,1754416269163,-541.08,0.00028767,2]
[377458562,1754416269172,-460.0,0.00028767,2]
[377458563,1754416269182,-460.0,0.00028767,2]
[377458564,1754416269192,-501.66944274,0.00028768,5]
[377458565,1754416269202,-1000.0,0.00028768,5]
[377458566,1754416269211,-500.0,0.00028768,5]
[377458567,1754416269220,-1500.0,0.00028768,5]
[377458568,1754416269229,-505.65854865,0.00028768,5]
[377458569,1754416269239,-500.0,0.00028768,5]
[377458570,1754416269248,-1500.0,0.00028768,5]
[377458571,1754416269257,-653.0185066,0.00028768,5]
[377458572,1754416269267,-407.27132358,0.00028768,5]
[377458573,1754416269276,-1500.0,0.00028768,2]
[377458574,1754416269286,-1500.0,0.00028768,5]
[377458575,1754416269295,-1500.0,0.00028768,5]
[377458576,1754416269304,-8618.66374831,0.00028783,2]
[377458577,1754416269313,-151.86,0.00028786,15]
[377458578,1754416269322,-153.24,0.00028796,15]
[377458579,1754416269332,-360.0,0.00028796,2]
[377458580,1754416269342,-9002.51843116,0.00028798,2]
[377458581,1754416269355,-423.02448967,0.00028849,2]
[377458582,1754416269365,-345.6,0.00028851,2]
[377458583,1754416269374,-198.95,0.00028856,15]
[377458584,1754416269384,-200.0,0.00028871,15]
[377458585,1754416269395,-300.0,0.00028871,15]
[377458586,1754416269404,-151.86,0.00028886,15]
[377458587,1754416269413,-153.24,0.00028896,15]
[377458588,1754416269424,-151.0,0.00028903,7]
[377458589,1754416269433,-151.0,0.00028903,7]
[377458590,1754416269443,-274.87708,0.00028903,7]
[377458591,1754416269452,-253.273501,0.00028903,7]
[377458592,1754416269462,-1712.627473,0.00028903,7]
[377458593,1754416269472,-1712.627473,0.00028903,7]
[377458594,1754416269481,-1207.294924,0.00028903,7]
[377458595,1754416269490,-151.0,0.00028903,2]
[377458596,1754416269500,-151.0,0.00028903,2]
[377458597,1754416269509,-151.0,0.00028903,2]
[377458598,1754416269518,-151.0,0.00028903,2]
[377458599,1754416269528,-151.0,0.00028903,2]
[377458600,1754416269537,-151.0,0.00028903,2]
[377458601,1754416269549,-151.0,0.00028903,2]
[377458602,1754416269558,-2183.31810187,0.00028903,2]
[377458603,1754416269567,-151.0,0.00028903,2]
[377458604,1754416269577,-151.0,0.00028903,2]
[377458605,1754416269586,-203.23431875,0.00028903,2]
[377458606,1754416269596,-300.0,0.00028903,2]
[377458607,1754416269606,-151.0,0.00028903,2]
[377458608,1754416269615,-151.0,0.00028903,2]
[377458609,1754416269625,-300.0,0.00028903,2]
[377458610,1754416269634,-300.0,0.00028903,2]
[377458611,1754416269644,-151.0,0.00028903,2]
[377458612,1754416269653,-300.0,0.00028903,2]
[377458613,1754416269662,-300.0,0.00028903,2]
[377458614,1754416269671,-151.0,0.00028903,2]
[377458615,1754416269680,-300.0,0.00028903,2]
[377458616,1754416269690,-300.0,0.00028903,2]
[377458617,1754416269711,-151.0,0.00028903,2]
[377458618,1754416269720,-300.0,0.00028903,2]
[377458619,1754416269730,-300.0,0.00028903,2]
[377458620,1754416269739,-151.0,0.00028903,2]
[377458621,1754416269750,-157.59247107,0.00028903,2]
[377458622,1754416269759,-300.0,0.00028903,2]
[377458623,1754416269768,-300.0,0.00028903,2]
[377458624,1754416269778,-300.0,0.00028903,2]
[377458625,1754416269788,-151.0,0.00028903,2]
[377458626,1754416269797,-300.0,0.00028903,2]
[377458627,1754416269807,-151.0,0.00028903,2]
[377458628,1754416269816,-151.0,0.00028903,2]
[377458629,1754416269825,-300.0,0.00028903,2]
[377458630,1754416269835,-151.0,0.00028903,2]
[377458631,1754416269844,-300.0,0.00028903,2]
[377458632,1754416269854,-151.0,0.00028903,2]
[377458633,1754416269863,-300.0,0.00028903,2]
[377458634,1754416269873,-300.0,0.00028903,2]
[377458635,1754416269882,-151.0,0.00028903,2]
[377458636,1754416269892,-151.0,0.00028903,2]
[377458637,1754416269901,-151.0,0.00028903,2]
[377458638,1754416269910,-151.0,0.00028903,2]
[377458639,1754416269919,-300.0,0.00028903,2]
[377458640,1754416269928,-151.0,0.00028903,2]
[377458641,1754416269937,-300.0,0.00028903,2]
[377458642,1754416269947,-151.0,0.00028903,2]
[377458643,1754416269957,-300.0,0.00028903,2]
[377458644,1754416269966,-151.0,0.00028903,2]
[377458645,1754416269975,-151.0,0.00028903,2]
[377458646,1754416269985,-300.0,0.00028903,2]
[377458647,1754416269994,-151.0,0.00028903,2]
[377458648,1754416270003,-300.0,0.00028903,2]
[377458649,1754416270013,-151.0,0.00028903,2]
[377458650,1754416270022,-151.0,0.00028903,2]
[377458651,1754416270031,-226.3786932,0.00028903,2]
[377458652,1754416270040,-151.0,0.00028903,2]
[377458653,1754416270049,-151.0,0.00028903,2]
[377458654,1754416270058,-151.0,0.00028903,2]
[377458655,1754416270068,-22188.54324152,0.00028903,2]
[377458656,1754416270078,-151.0,0.00028903,2]
[377458657,1754416270087,-151.0,0.00028903,2]
[377458658,1754416270096,-151.0,0.00028903,2]
[377458659,1754416270105,-151.0,0.00028903,2]
[377458660,1754416270114,-151.0,0.00028903,2]
[377458661,1754416270124,-151.0,0.00028903,2]
[377458662,1754416270134,-151.0,0.00028903,2]
[377458663,1754416270143,-151.0,0.00028903,2]
[377458664,1754416270152,-615.90160497,0.00028933,2]
[377458665,1754416270162,-1000.0,0.00028953,5]
[377458666,1754416270171,-198.95,0.00028956,15]
[377458667,1754416270180,-2264.10087164,0.00028958,2]
[377458668,1754416270190,-267.498216,0.0002898,2]
[377458669,1754416270199,-151.86,0.00028986,15]
[377458670,1754416270208,-423.02448967,0.00028986,2]
[377458671,1754416270217,-153.24,0.00028996,15]
[377458672,1754416270227,-3000.0,0.00029012,5]
[377458673,1754416270236,-3000.0,0.00029012,5]
[377458674,1754416270246,-2347.87260389,0.00029013,2]
[377458675,1754416270255,-1500.0,0.00029016,2]
[377458676,1754416270264,-450.0,0.00029016,5]
[377458677,1754416270274,-1000.0,0.00029016,5]
[377458678,1754416270283,-2000.0,0.00029016,5]
[377458679,1754416270292,-1021.3620583,0.00029016,5]
[377458680,1754416270302,-150.83960042,0.00029016,5]
[377458681,1754416270311,-505.56393485,0.00029016,5]
[377458682,1754416270320,-736.38931069,0.00029016,5]
[377458683,1754416270329,-863.30068067,0.00029016,5]
[377458684,1754416270340,-2000.0,0.00029016,5]
[377458685,1754416270351,-2009.38329096,0.00029016,5]
[377458686,1754416270361,-201.20139118,0.0002904,10]
[377458687,1754416270370,-160.76663723,0.0002904,10]
[377458688,1754416270379,-460.0,0.00029041,2]
[377458689,1754416270550,-460.0,0.00029041,2]
[377458690,1754416270561,-857.66,0.00029041,2]
[377458691,1754416270570,-663.23,0.00029041,2]
[377458692,1754416270580,-460.0,0.00029041,2]
[377458693,1754416270592,-658.86,0.00029041,2]
[377458694,1754416270602,-460.0,0.00029041,2]
[377458695,1754416270611,-6772.75,0.00029041,2]
[377458696,1754416270621,-575.50485324,0.00029041,2]
[377458697,1754416270631,-1541.2,0.00029041,2]
[377458698,1754416270640,-460.0,0.00029041,2]
[377458699,1754416270650,-467.7913872,0.00029041,2]
[377458700,1754416270659,-470.88260073,0.00029041,2]
[377458701,1754416270669,-460.0,0.00029041,2]
[377458702,1754416270678,-812.68,0.00029041,2]
[377458703,1754416270687,-460.0,0.00029041,2]
[377458704,1754416270696,-740.38,0.00029041,2]
[377458705,1754416270706,-1550.45,0.00029041,2]
[377458706,1754416270719,-532.66,0.00029041,2]
[377458707,1754416270728,-460.0,0.00029041,2]
[377458708,1754416270737,-460.0,0.00029041,2]
[377458709,1754416270746,-499.40320223,0.00029041,2]
[377458710,1754416270756,-1978.84,0.00029041,2]
[377458711,1754416270765,-1378.33,0.00029041,2]
[377458712,1754416270774,-460.0,0.00029041,2]
[377458713,1754416270784,-346.9539371,0.00029041,2]
[377458714,1754416270793,-460.0,0.00029041,2]
[377458715,1754416270803,-153.440057,0.00029041,7]
[377458716,1754416270812,-460.0,0.00029041,2]
[377458717,1754416270821,-460.0,0.00029041,2]
[377458718,1754416270831,-470.31131267,0.00029041,2]
[377458719,1754416270842,-460.0,0.00029041,2]
[377458720,1754416270851,-460.0,0.00029041,2]
[377458721,1754416270860,-460.0,0.00029041,2]
[377458722,1754416270870,-460.0,0.00029041,2]
[377458723,1754416270880,-460.0,0.00029041,2]
[377458724,1754416270889,-460.0,0.00029041,2]
[377458725,1754416270898,-477.13659063,0.00029041,2]
[377458726,1754416270908,-259.01234341,0.00029041,2]
[377458727,1754416270918,-151.0,0.00029041,7]
[377458728,1754416270928,-613.34,0.00029041,2]
[377458729,1754416270938,-151.0,0.00029041,7]
[377458730,1754416270948,-460.0,0.00029041,2]
[377458731,1754416270957,-460.0,0.00029041,2]
[377458732,1754416270967,-460.0,0.00029041,2]
[377458733,1754416270976,-460.0,0.00029041,2]
[377458734,1754416270986,-460.0,0.00029041,2]
[377458735,1754416270995,-460.0,0.00029041,2]
[377458736,1754416271006,-223.49467402,0.00029041,2]
[377458737,1754416271015,-460.0,0.00029041,2]
[377458738,1754416271025,-460.0,0.00029041,2]
[377458739,1754416271034,-460.0,0.00029041,2]
[377458740,1754416271044,-151.0,0.00029041,7]
[377458741,1754416271054,-460.0,0.00029041,2]
[377458742,1754416271063,-460.0,0.00029041,2]
[377458743,1754416271072,-460.0,0.00029041,2]
[377458744,1754416271082,-460.0,0.00029041,2]
[377458745,1754416271093,-460.0,0.00029041,2]
[377458746,1754416271103,-582.94014871,0.00029041,2]
[377458747,1754416271113,-460.0,0.00029041,2]
[377458748,1754416271122,-473.81354184,0.00029041,2]
[377458749,1754416271132,-151.0,0.00029041,7]
[377458750,1754416271141,-1321.58,0.00029041,2]
[377458751,1754416271151,-460.0,0.00029041,2]
[377458752,1754416271160,-222.31398,0.00029041,7]
[377458753,1754416271170,-460.0,0.00029041,2]
[377458754,1754416271179,-222.31398,0.00029041,7]
[377458755,1754416271189,-1103.62,0.00029041,2]
[377458756,1754416271199,-460.0,0.00029041,2]
[377458757,1754416271209,-7164.38,0.00029041,2]
[377458758,1754416271218,-460.99,0.00029041,2]
[377458759,1754416271228,-460.0,0.00029041,2]
[377458760,1754416271237,-460.0,0.00029041,2]
[377458761,1754416271247,-460.0,0.00029041,2]
[377458762,1754416271257,-460.0,0.00029041,2]
[377458763,1754416271266,-465.17304523,0.00029041,2]
[377458764,1754416271275,-460.0,0.00029041,2]
[377458765,1754416271285,-460.0,0.00029041,2]
[377458766,1754416271295,-91405.03,0.00029041,2]
[377458767,1754416271305,-460.0,0.00029041,2]
[377458768,1754416271314,-460.0,0.00029041,2]
[377458769,1754416271324,-1342.06,0.00029041,2]
[377458770,1754416271333,-460.0,0.00029041,2]
[377458771,1754416271343,-502.21,0.00029041,2]
[377458772,1754416271357,-500.0,0.00029041,2]
[377458773,1754416271367,-460.0,0.00029041,2]
[377458774,1754416271376,-1250.59,0.00029041,2]
[377458775,1754416271385,-1881.28,0.00029041,2]
[377458776,1754416271397,-464.06820011,0.00029041,2]
[377458777,1754416271407,-824.53,0.00029041,2]
[377458778,1754416271416,-3340.06,0.00029041,2]
[377458779,1754416271426,-1138.15,0.00029041,2]
[377458780,1754416271435,-460.0,0.00029041,2]
[377458781,1754416271445,-460.0,0.00029041,2]
[377458782,1754416271454,-468.73380115,0.00029041,2]
[377458783,1754416271464,-460.0,0.00029041,2]
[377458784,1754416271473,-495.79985782,0.00029041,2]
[377458785,1754416271483,-460.0,0.00029041,2]
[377458786,1754416271492,-460.0,0.00029041,2]
[377458787,1754416271502,-460.0,0.00029041,2]
[377458788,1754416271511,-460.0,0.00029041,2]
[377458789,1754416271521,-494.61,0.00029041,2]
[377458790,1754416271531,-460.0,0.00029041,2]
[377458791,1754416271540,-460.0,0.00029041,2]
[377458792,1754416271549,-460.0,0.00029041,2]
[377458793,1754416271560,-567.26,0.00029041,2]
[377458794,1754416271570,-460.0,0.00029041,2]
[377458795,1754416271579,-500.0,0.00029041,5]
[377458796,1754416271589,-460.0,0.00029041,2]
[377458797,1754416271598,-1437.23,0.00029041,2]
[377458798,1754416271607,-460.0,0.00029041,2]
[377458799,1754416271618,-2164.48,0.00029041,2]
[377458800,1754416271627,-1086.69,0.00029041,2]
[377458801,1754416271636,-465.03013377,0.00029041,2]
[377458802,1754416271646,-460.0,0.00029041,2]
[377458803,1754416271656,-1308.5,0.00029041,2]
[377458804,1754416271665,-460.0,0.00029041,2]
[377458805,1754416271674,-460.0,0.00029041,2]
[377458806,1754416271683,-460.0,0.00029041,2]
[377458807,1754416271692,-1242.29,0.00029041,2]
[377458808,1754416271701,-460.0,0.00029041,2]
[377458809,1754416271711,-460.0,0.00029041,2]
[377458810,1754416271720,-460.0,0.00029041,2]
[377458811,1754416271729,-460.0,0.00029041,2]
[377458812,1754416271738,-738.23,0.00029041,2]
[377458813,1754416271748,-460.0,0.00029041,2]
[377458814,1754416271757,-460.0,0.00029041,2]
[377458815,1754416271766,-444.5046586,0.00029041,2]
[377458816,1754416271776,-460.0,0.00029041,2]
[377458817,1754416271785,-1758.45,0.00029041,2]
[377458818,1754416271794,-1709.46,0.00029041,2]
[377458819,1754416271803,-460.0,0.00029041,2]
[377458820,1754416271813,-6104.81,0.00029041,2]
[377458821,1754416271822,-460.0,0.00029041,2]
[377458822,1754416271831,-460.0,0.00029041,2]
[377458823,1754416271841,-902.91,0.00029041,2]
[377458824,1754416271850,-710.17,0.00029041,2]
[377458825,1754416271859,-1606.27,0.00029041,2]
[377458826,1754416271869,-819.41,0.00029041,2]
[377458827,1754416271879,-1844.87,0.00029041,2]
[377458828,1754416271888,-460.0,0.00029041,2]
[377458829,1754416271898,-467.12078335,0.00029041,2]
[377458830,1754416271907,-460.0,0.00029041,2]
[377458831,1754416271916,-460.0,0.00029041,2]
[377458832,1754416271926,-460.0,0.00029041,2]
[377458833,1754416271936,-460.0,0.00029041,2]
[377458834,1754416271946,-460.0,0.00029041,2]
[377458835,1754416271955,-270.20706565,0.00029041,2]
[377458836,1754416271964,-881.55,0.00029041,2]
[377458837,1754416271974,-460.0,0.00029041,2]
[377458838,1754416271984,-466.77127375,0.00029041,2]
[377458839,1754416271993,-460.0,0.00029041,2]
[377458840,1754416272003,-460.0,0.00029041,2]
[377458841,1754416272012,-460.0,0.00029041,2]
[377458842,1754416272021,-558.16,0.00029041,2]
[377458843,1754416272030,-518.54,0.00029041,2]
[377458844,1754416272040,-460.0,0.00029041,2]
[377458845,1754416272049,-460.0,0.00029041,2]
[377458846,1754416272058,-1561.24,0.00029041,2]
[377458847,1754416272067,-168.28342658,0.00029041,2]
[377458848,1754416272077,-460.0,0.00029041,2]
[377458849,1754416272086,-460.0,0.00029041,2]
[377458850,1754416272096,-3008.19,0.00029041,2]
[377458851,1754416272105,-460.0,0.00029041,2]
[377458852,1754416272118,-460.0,0.00029041,2]
[377458853,1754416272137,-844.75,0.00029041,2]
[377458854,1754416272146,-460.0,0.00029041,2]
[377458855,1754416272155,-460.0,0.00029041,2]
[377458856,1754416272164,-1209.84,0.00029041,2]
[377458857,1754416272174,-1526.12,0.00029041,2]
[377458858,1754416272185,-460.0,0.00029041,2]
[377458859,1754416272195,-734.51,0.00029041,2]
[377458860,1754416272204,-460.0,0.00029041,2]
[377458861,1754416272213,-464.26118888,0.00029041,2]
[377458862,1754416272222,-674.37,0.00029041,2]
[377458863,1754416272232,-460.0,0.00029041,2]
[377458864,1754416272241,-460.0,0.00029041,2]
[377458865,1754416272251,-460.0,0.00029041,2]
[377458866,1754416272260,-844.14,0.00029041,2]
[377458867,1754416272269,-1000.34,0.00029041,2]
[377458868,1754416272278,-461.69525378,0.00029041,2]
[377458869,1754416272288,-2193.9,0.00029041,2]
[377458870,1754416272297,-460.0,0.00029041,2]
[377458871,1754416272307,-460.0,0.00029041,2]
[377458872,1754416272316,-460.0,0.00029041,2]
[377458873,1754416272325,-460.0,0.00029041,2]
[377458874,1754416272335,-519.7,0.00029041,2]
[377458875,1754416272345,-460.0,0.00029041,2]
[377458876,1754416272357,-460.0,0.00029041,2]
[377458877,1754416272366,-460.0,0.00029041,2]
[377458878,1754416272376,-460.0,0.00029041,2]
[377458879,1754416272386,-460.0,0.00029041,2]
[377458880,1754416272396,-460.0,0.00029041,2]
[377458881,1754416272406,-748.97,0.00029041,2]
[377458882,1754416272415,-460.0,0.00029041,2]
[377458883,1754416272425,-460.0,0.00029041,2]
[377458884,1754416272434,-464.23388928,0.00029041,2]
[377458885,1754416272444,-460.0,0.00029041,2]
[377458886,1754416272454,-460.0,0.00029041,2]
[377458887,1754416272464,-3138.65,0.00029041,2]
[377458888,1754416272473,-460.0,0.00029041,2]
[377458889,1754416272483,-489.33,0.00029041,2]
[377458890,1754416272492,-460.0,0.00029041,2]
[377458891,1754416272502,-460.0,0.00029041,2]
[377458892,1754416272512,-460.0,0.00029041,2]
[377458893,1754416272521,-460.0,0.00029041,2]
[377458894,1754416272531,-460.0,0.00029041,2]
[377458895,1754416272540,-3180.74,0.00029041,2]
[377458896,1754416272551,-1930.76,0.00029041,2]
[377458897,1754416272561,-2230.2,0.00029041,2]
[377458898,1754416272570,-460.0,0.00029041,2]
[377458899,1754416272580,-481.0094176,0.00029041,2]
[377458900,1754416272590,-460.0,0.00029041,2]
[377458901,1754416272599,-311.01506924,0.00029041,2]
[377458902,1754416272608,-460.0,0.00029041,2]
[377458903,1754416272617,-560.35,0.00029041,2]
[377458904,1754416272626,-460.0,0.00029041,2]
[377458905,1754416272635,-727.87,0.00029041,2]
[377458906,1754416272644,-460.0,0.00029041,2]
[377458907,1754416272654,-460.0,0.00029041,2]
[377458908,1754416272663,-460.0,0.00029041,2]
[377458909,1754416272673,-1127.9,0.00029041,2]
[377458910,1754416272682,-460.0,0.00029041,2]
[377458911,1754416272692,-460.0,0.00029041,2]
[377458912,1754416272701,-471.16963835,0.00029041,2]
[377458913,1754416272710,-460.0,0.00029041,2]
[377458914,1754416272719,-460.0,0.00029041,2]
[377458915,1754416272728,-1550.17,0.00029041,2]
[377458916,1754416272738,-460.0,0.00029041,2]
[377458917,1754416272750,-460.0,0.00029041,2]
[377458918,1754416272759,-460.0,0.00029041,2]
[377458919,1754416272769,-569.87,0.00029041,2]
[377458920,1754416272778,-2106.63,0.00029041,2]
[377458921,1754416272787,-3854.83,0.00029041,2]
[377458922,1754416272797,-460.0,0.00029041,2]
[377458923,1754416272806,-714.24,0.00029041,2]
[377458924,1754416272816,-541.08,0.00029041,2]